fUST/lending_fUST_20251101
["ID","MTS","AMOUNT","RATE_DAILY","PERIOD"]
[392805700,1761975198775,-896.24729588,0.00032898,3]
[392805701,1761975200378,-275.38514838,0.00032898,3]
[392805702,1761975200422,-275.38514838,0.00032898,3]
[392805703,1761975201427,-152.98240736,0.00032898,3]
[392805704,1761975201455,-834.98225061,0.00032924,2]
[392805705,1761975201481,-503.71908198,0.00032973,2]
[392805706,1761975201508,-475.72602494,0.00032973,5]
[392805707,1761975201535,-230.55903613,0.00032973,5]
[392805708,1761975201563,-503.4868178,0.00032973,5]
[392805709,1761975201591,-500.0,0.00032973,2]
[392805710,1761975201618,-500.0,0.00032973,3]
[392805711,1761975201644,-509.85619046,0.00032973,5]
[392805712,1761975201672,-208.78585451,0.00032973,5]
[392805713,1761975201702,-500.0,0.00032989,4]
[392805714,1761975201864,-159.81467242,0.00032989,2]
[392805715,1761975204483,-340.18532758,0.00032989,2]
[392805716,1761975204523,-9319.63934484,0.0003299,2]
[392805717,1761975206330,243.04831,0.00034173,31]
[392805718,1761975210427,700.729724,0.00034019,31]
[392805719,1761975210507,-1716.0671687,0.0003299,2]
[392805720,1761975210533,-6567.8756626,0.0003299,2]
[392805721,1761975210726,700.729724,0.00034249,31]
[392805722,1761975211074,700.729724,0.00034851,31]
[392805723,1761975211394,700.729724,0.00035606,31]
[392805724,1761975211683,700.729724,0.00035616,31]
[392805725,1761975212009,700.729724,0.00034019,31]
[392805726,1761975212386,700.729724,0.00034249,31]
[392805727,1761975212664,700.729724,0.00034851,31]
[392805728,1761975212958,700.729724,0.00035606,31]
[392805729,1761975213254,700.729724,0.00035616,31]
[392805730,1761975213537,700.729724,0.00034019,31]
[392805731,1761975213828,700.729724,0.00034249,31]
[392805732,1761975214124,700.729724,0.00034851,31]
[392805733,1761975214410,700.729724,0.00035606,31]
[392805734,1761975214698,700.729724,0.00035616,31]
[392805735,1761975214992,700.729724,0.00034019,31]
[392805736,1761975215281,700.729724,0.00034249,31]
[392805737,1761975215618,700.729724,0.00034851,31]
[392805738,1761975215907,700.729724,0.00035606,31]
[392805739,1761975216194,700.729717,0.00035616,31]
[392805740,1761975216573,-150.0,0.00030818,2]
[392805741,1761975216603,-151.0,0.0003299,2]
[392805742,1761975216631,-151.0,0.0003299,2]
[392805743,1761975216658,-151.0,0.0003299,2]
[392805744,1761975216686,-151.0,0.0003299,2]
[392805745,1761975216715,-500.0,0.00032998,7]
[392805746,1761975216746,-500.0,0.00032998,2]
[392805747,1761975216772,-213.55964899,0.00032998,7]
[392805748,1761975216799,-500.0,0.00032998,7]
[392805749,1761975216827,-500.0,0.00032998,7]
[392805750,1761975216855,-500.0,0.00032998,7]
[392805751,1761975216885,-500.0,0.00032998,7]
[392805752,1761975216915,-500.0,0.00032998,2]
[392805753,1761975216944,-500.0,0.00032998,7]
[392805754,1761975217166,-64.89070202,0.00032998,7]
[392805755,1761975219523,-435.10929798,0.00032998,7]
[392805756,1761975219557,-500.0,0.00032998,7]
[392805757,1761975219586,-500.0,0.00032998,7]
[392805758,1761975219709,-500.0,0.00032998,7]
[392805759,1761975219739,-500.0,0.00032998,2]
[392805760,1761975219767,-500.0,0.00032998,7]
[392805761,1761975219797,-500.0,0.00032998,7]
[392805762,1761975219825,-500.0,0.00032998,7]
[392805763,1761975219854,-196.6226431,0.00032998,2]
[392805764,1761975219882,-500.0,0.00032998,7]
[392805765,1761975219910,-236.54611784,0.00032998,7]
[392805766,1761975220077,-263.45388216,0.00032998,7]
[392805767,1761975222764,-500.0,0.00032998,7]
[392805768,1761975222796,-500.0,0.00032998,7]
[392805769,1761975222825,-500.0,0.00032998,7]
[392805770,1761975222852,-425.94470695,0.00032998,7]
[392805771,1761975222881,-500.0,0.00032998,7]
[392805772,1761975222908,-500.0,0.00032998,2]
[392805773,1761975222936,-500.0,0.00032998,7]
[392805774,1761975222965,-500.0,0.00032998,7]
[392805775,1761975222992,-500.0,0.00032998,7]
[392805776,1761975223026,-500.0,0.00032998,7]
[392805777,1761975223190,-148.1205861,0.00032998,7]
[392805778,1761975223944,179.84293,0.00034173,31]
[392805779,1761975225592,-245.85991133,0.00032998,7]
[392805780,1761975225622,-500.0,0.00032998,2]
[392805781,1761975225652,-500.0,0.00032998,7]
[392805782,1761975225681,-500.0,0.00032998,2]
[392805783,1761975225713,-632.13505835,0.00032998,7]
[392805784,1761975225742,-500.0,0.00032998,7]
[392805785,1761975225769,-500.0,0.00032998,7]
[392805786,1761975225799,-337.34376655,0.00032998,7]
[392805787,1761975225828,-500.0,0.00032998,2]
[392805788,1761975225858,-413.63358479,0.00032998,7]
[392805789,1761975225888,-242.06535796,0.00032998,7]
[392805790,1761975225986,-257.93464204,0.00032998,7]
[392805791,1761975226014,-500.0,0.00032998,7]
[392805792,1761975226045,-500.0,0.00032998,2]
[392805793,1761975226075,-500.0,0.00032998,7]
[392805794,1761975226103,-500.0,0.00032998,7]
[392805795,1761975226132,-500.0,0.00032998,7]
[392805796,1761975226163,-500.0,0.00032998,7]
[392805797,1761975226192,-500.0,0.00032998,7]
[392805798,1761975226221,-500.0,0.00032998,7]
[392805799,1761975226250,-500.0,0.00032998,2]
[392805800,1761975226507,-257.93464204,0.00032998,7]
[392805801,1761975226609,-242.06535796,0.00032998,7]
[392805802,1761975226619,-242.07535796,0.00032998,7]
[392805803,1761975231654,-257.92464204,0.00032998,7]
[392805804,1761975231686,-500.0,0.00032998,7]
[392805805,1761975231713,-500.0,0.00032998,7]
[392805806,1761975231741,-505.35424432,0.00032998,7]
[392805807,1761975231771,-500.0,0.00032998,7]
[392805808,1761975231801,-500.0,0.00032998,7]
[392805809,1761975231829,-500.0,0.00032998,7]
[392805810,1761975231859,-500.0,0.00032998,7]
[392805811,1761975231886,-500.0,0.00032998,7]
[392805812,1761975231913,-500.0,0.00032998,7]
[392805813,1761975231979,-500.0,0.00032998,7]
[392805814,1761975232007,-500.0,0.00032998,2]
[392805815,1761975232034,-615.77312642,0.00032998,2]
[392805816,1761975240268,160.0,0.00035616,30]
[392805817,1761975248277,151.0,0.00034019,31]
[392805818,1761975248586,152.371675,0.00034249,31]
[392805819,1761975280221,151.0,0.00034239,31]
[392805820,1761975280589,151.0,0.00034851,31]
[392805821,1761975280965,151.0,0.00035606,31]
[392805822,1761975281272,151.0,0.00035616,31]
[392805823,1761975281646,151.0,0.00035616,31]
[392805824,1761975282003,242.382288,0.00034239,31]
[392805825,1761975292511,151.0,0.00034239,31]
[392805826,1761975295047,153.074749,0.00034851,31]
[392805827,1761975311223,151.0,0.00034239,31]
[392805828,1761975311517,151.0,0.00034851,31]
[392805829,1761975311829,151.0,0.00035606,31]
[392805830,1761975312276,151.0,0.00035616,31]
[392805831,1761975312577,151.0,0.00035616,31]
[392805832,1761975312893,151.0,0.00034239,31]
[392805833,1761975313189,151.0,0.00034851,31]
[392805834,1761975313526,151.0,0.00035606,31]
[392805835,1761975313762,151.0,0.00035616,31]
[392805836,1761975314099,151.0,0.00035616,31]
[392805837,1761975314335,151.0,0.00034239,31]
[392805838,1761975314624,151.0,0.00034851,31]
[392805839,1761975314913,151.0,0.00035606,31]
[392805840,1761975315229,151.0,0.00035616,31]
[392805841,1761975315526,151.0,0.00035616,31]
[392805842,1761975315816,151.0,0.00034239,31]
[392805843,1761975316111,151.0,0.00034851,31]
[392805844,1761975316405,191.848701,0.00035606,31]
[392805845,1761975326410,154.0,0.000338,30]
[392805846,1761975327677,152.068639,0.00034239,31]
[392805847,1761975329088,151.0,0.00034239,31]
[392805848,1761975329463,151.0,0.00034851,31]
[392805849,1761975329780,151.0,0.00035606,31]
[392805850,1761975330089,240.222357,0.00035616,31]
[392805851,1761975340143,-374.32395061,0.00032367,2]
[392805852,1761975340172,-427.79880069,0.00032367,2]
[392805853,1761975340202,-667.76719046,0.00032367,2]
[392805854,1761975340231,-1600.0,0.00032899,3]
[392805855,1761975340259,-870.51904347,0.000329,2]
[392805856,1761975340287,-209.51017245,0.00032989,7]
[392805857,1761975340317,-560.10303635,0.00032989,4]
[392805858,1761975340347,-79.96561194,0.00032989,2]
[392805859,1761975340490,-420.03438806,0.00032989,2]
[392805860,1761975340519,-300.0,0.00032997,3]
[392805861,1761975340547,-303.0,0.00032998,3]
[392805862,1761975340576,-300.0,0.00032998,3]
[392805863,1761975340605,-400.0,0.00032998,3]
[392805864,1761975340634,-1565.45,0.00032999,4]
[392805865,1761975340663,-1565.45,0.00032999,4]
[392805866,1761975340925,-373.39097544,0.00032999,2]
[392805867,1761975340935,-46.64341262,0.00033,14]
[392805868,1761975340951,-292.14122388,0.00033,14]
[392805869,1761975343027,-10000.01,0.00033,14]
[392805870,1761975343164,-10000.01,0.00033,14]
[392805871,1761975344026,151.0,0.00034239,31]
[392805872,1761975349139,-4465.4853635,0.00033,14]
[392805873,1761975349174,-1069.039273,0.00033,2]
[392805874,1761975349247,-3998.94929033,0.00033,2]
[392805875,1761975349270,-2002.11141934,0.00033,2]
[392805876,1761975350144,153.879368,0.00034239,31]
[392805877,1761975352103,-4364.96,0.00033,14]
[392805878,1761975352131,-254.32711094,0.00033132,2]
[392805879,1761975352163,-150.0,0.00033172,2]
[392805880,1761975352194,-151.0,0.000332,14]
[392805881,1761975352271,-159.43577812,0.00033231,7]
[392805882,1761975355180,-349.03907977,0.00033231,7]
[392805883,1761975355218,-601.51484275,0.00033231,7]
[392805884,1761975355253,-325.10496744,0.00033231,7]
[392805885,1761975355290,-570.23722871,0.00033231,7]
[392805886,1761975355325,-521.84696034,0.00033231,2]
[392805887,1761975357823,150.0,0.00030549,2]
[392805888,1761975431167,150.0,0.0002589,2]
[392805889,1761975431804,-177.0,0.0002789,2]
[392805890,1761975432888,258.0,0.0003389,120]
[392805891,1761975433590,151.0,0.00035377,31]
[392805892,1761975433990,164.635929,0.00035596,31]
[392805893,1761975444933,151.0,0.00034239,31]
[392805894,1761975446398,155.933781,0.00034851,31]
[392805895,1761975461186,154.0,0.000338,30]
[392805896,1761975482854,-204.0,0.0002989,2]
[392805897,1761975482884,-150.0,0.00030637,2]
[392805898,1761975482911,-400.0,0.00031737,2]
[392805899,1761975482938,-557.0,0.00031737,3]
[392805900,1761975483028,-7228.01,0.00031738,2]
[392805901,1761975483136,181.37,0.00017982,7]
[392805902,1761975483420,106.89763003,0.00017982,7]
[392805903,1761975483443,74.47236997,0.00017982,7]
[392805904,1761975483688,181.35,0.00017982,7]
[392805905,1761975484000,610.50931375,0.00033631,32]
[392805906,1761975488723,-400.0,0.00031737,2]
[392805907,1761975488758,-9200.01,0.00031738,2]
[392805908,1761975514075,174.652115,0.00034239,31]
[392805909,1761975563380,155.520612,0.00034144,31]
[392805910,1761975570247,151.0,0.00034144,31]
[392805911,1761975570862,151.0,0.00034712,31]
[392805912,1761975571285,152.166768,0.00035496,31]
[392805913,1761975596110,151.0,0.00034144,31]
[392805914,1761975596653,151.0,0.00034712,31]
[392805915,1761975597488,151.0,0.00035496,31]
[392805916,1761975601329,151.0,0.00035606,31]
[392805917,1761975609686,263.711647,0.00035616,31]
[392805918,1761975619782,159.518539,0.00034144,31]
[392805919,1761975630409,151.0,0.00034129,30]
[392805920,1761975630719,151.0,0.00034598,30]
[392805921,1761975631305,151.0,0.00035463,30]
[392805922,1761975631587,268.086703,0.00035606,30]
[392805923,1761975692379,159.97172,0.00034239,31]
[392805924,1761975692812,159.97172,0.00034851,31]
[392805925,1761975693235,159.97172,0.00035606,31]
[392805926,1761975693612,159.97172,0.00035616,31]
[392805927,1761975693986,159.97172,0.00035616,31]
[392805928,1761975694420,159.97172,0.00034239,31]
[392805929,1761975694746,159.97172,0.00034851,31]
[392805930,1761975695020,159.97172,0.00035606,31]
[392805931,1761975695486,159.97172,0.00035616,31]
[392805932,1761975695850,159.97172,0.00035616,31]
[392805933,1761975696137,159.97172,0.00034239,31]
[392805934,1761975696167,151.0,0.00034144,31]
[392805935,1761975696586,159.97172,0.00034851,31]
[392805936,1761975696777,151.0,0.000341,31]
[392805937,1761975696900,159.97172,0.00035606,31]
[392805938,1761975697188,159.97172,0.00035616,31]
[392805939,1761975697611,159.97172,0.00035616,31]
[392805940,1761975697973,151.0,0.000341,31]
[392805941,1761975698006,159.97172,0.00034239,31]
[392805942,1761975698254,151.0,0.00034344,31]
[392805943,1761975698286,159.97172,0.00034851,31]
[392805944,1761975698535,159.97172,0.00035606,31]
[392805945,1761975698567,151.0,0.00035452,31]
[392805946,1761975698815,159.97172,0.00035616,31]
[392805947,1761975698861,151.0,0.00035606,31]
[392805948,1761975699099,159.971725,0.00035616,31]
[392805949,1761975699149,237.993509,0.00035616,31]
[392805950,1761975701179,151.0,0.00034712,31]
[392805951,1761975701559,151.0,0.00035496,31]
[392805952,1761975702608,170.75767922,0.00031698,30]
[392805953,1761975703309,151.0,0.00035606,31]
[392805954,1761975713791,151.0,0.00035616,31]
[392805955,1761975714263,202.631074,0.00034144,31]
[392805956,1761975732936,151.0,0.000341,31]
[392805957,1761975733104,152.416193,0.00034344,31]
[392805958,1761975745436,150.0,0.0002589,2]
[392805959,1761975756747,151.0,0.000341,31]
[392805960,1761975757034,151.0,0.00034344,31]
[392805961,1761975757333,171.850702,0.00035073,31]
[392805962,1761975796796,5000.0,0.00038015,69]
[392805965,1761975808856,151.0,0.00034098,31]
[392805966,1761975809252,151.0,0.00034229,31]
[392805967,1761975809620,151.0,0.0003504,31]
[392805968,1761975809996,151.0,0.00035606,31]
[392805969,1761975810299,151.0,0.00035616,31]
[392805970,1761975810610,151.0,0.00034098,31]
[392805971,1761975810953,151.0,0.00034229,31]
[392805972,1761975811326,151.0,0.0003504,31]
[392805973,1761975811728,151.0,0.00035606,31]
[392805974,1761975811991,183.985822,0.00034098,31]
[392805975,1761975812027,240.115022,0.00035616,31]
[392805976,1761975829620,151.0,0.00034098,31]
[392805977,1761975829902,151.0,0.00034229,31]
[392806007,1761975890640,169.233123,0.00014955,2]
[392806012,1761975917359,153.321969,0.0003367,31]
[392806017,1761975991123,-177.0,0.0002789,2]
[392806018,1761975991145,-61.01723744,0.0002989,2]
[392806019,1761976031692,151.0,0.0003367,31]
[392806020,1761976031972,151.0,0.0003408,31]
[392806021,1761976032085,-142.98276256,0.0002989,2]
[392806022,1761976032107,-36.60530614,0.0002991,2]
[392806023,1761976032260,151.0,0.000341,31]
[392806024,1761976032588,151.0,0.00034372,31]
[392806025,1761976032873,151.0,0.00035549,31]
[392806026,1761976033156,151.0,0.0003367,31]
[392806027,1761976033443,151.0,0.0003408,31]
[392806028,1761976033735,151.0,0.000341,31]
[392806029,1761976034370,151.0,0.00034372,31]
[392806030,1761976034679,151.0,0.00035549,31]
[392806031,1761976034963,151.0,0.0003367,31]
[392806032,1761976035270,151.0,0.0003408,31]
[392806033,1761976035586,151.0,0.000341,31]
[392806034,1761976036176,151.0,0.00034372,31]
[392806035,1761976036587,151.0,0.00035549,31]
[392806036,1761976036905,165.691456,0.0003367,31]
[392806037,1761976046077,-132.62781686,0.0002991,2]
[392806038,1761976046099,-203.0576355,0.00030023,2]
[392806039,1761976046119,-254.4567434,0.00030197,2]
[392806040,1761976046141,-1943.70484602,0.00031141,2]
[392806041,1761976058222,177.01321594,0.0002589,2]
[392806042,1761976058250,12.13498576,0.0002589,2]
[392806043,1761976104666,524.0609473,0.00035616,120]
[392806044,1761976123497,151.0,0.00033661,31]
[392806045,1761976123789,151.0,0.00034031,31]
[392806046,1761976124073,151.0,0.00034575,31]
[392806047,1761976124378,151.0,0.00035616,31]
[392806048,1761976124663,151.0,0.00035616,31]
[392806049,1761976124964,151.0,0.00033661,31]
[392806050,1761976125280,151.0,0.00034031,31]
[392806051,1761976125587,151.0,0.00034575,31]
[392806052,1761976125875,151.0,0.00035616,31]
[392806053,1761976126161,151.0,0.00035616,31]
[392806054,1761976126387,300.0,0.000259,2]
[392806055,1761976126446,151.0,0.00033661,31]
[392806056,1761976126731,151.0,0.00034031,31]
[392806057,1761976127029,151.0,0.00034575,31]
[392806058,1761976127322,151.0,0.00035616,31]
[392806059,1761976127604,151.0,0.00035616,31]
[392806060,1761976127897,151.0,0.00033661,31]
[392806061,1761976128182,151.0,0.00034031,31]
[392806062,1761976128466,205.736806,0.00034575,31]
[392806063,1761976137266,300.0,0.000259,2]
[392806064,1761976137646,5000.0,0.00026,2]
[392806065,1761976148083,-1600.0,0.00031493,3]
[392806066,1761976148110,-150.0,0.00031554,2]
[392806067,1761976148131,-304.0,0.00031642,3]
[392806068,1761976148153,-904.29447087,0.00031715,2]
[392806069,1761976148178,-151.0,0.00031719,2]
[392806070,1761976148202,-151.0,0.00031719,2]
[392806071,1761976148227,-151.0,0.00031719,2]
[392806072,1761976148250,-151.0,0.00031719,2]
[392806073,1761976148273,-151.0,0.00031719,2]
[392806074,1761976148295,-151.0,0.00031719,2]
[392806075,1761976148316,-151.0,0.00031719,2]
[392806076,1761976148428,-151.0,0.00031719,2]
[392806077,1761976148451,-151.0,0.00031719,2]
[392806078,1761976148474,-151.0,0.00031719,2]
[392806079,1761976148497,-151.0,0.00031719,2]
[392806080,1761976148519,-151.0,0.00031719,2]
[392806081,1761976148541,-151.0,0.00031719,2]
[392806082,1761976148562,-151.0,0.00031719,2]
[392806083,1761976148583,-151.0,0.00031719,2]
[392806084,1761976148604,-151.0,0.00031719,2]
[392806085,1761976148626,-151.0,0.00031719,2]
[392806086,1761976148648,-151.0,0.00031719,2]
[392806087,1761976148669,-151.0,0.00031719,2]
[392806088,1761976148691,-151.0,0.00031719,2]
[392806089,1761976148712,-506.45761781,0.00031738,4]
[392806090,1761976148739,-567.404979,0.00031738,4]
[392806091,1761976148760,-341.70246211,0.00031738,4]
[392806092,1761976148782,-500.0,0.00031738,2]
[392806093,1761976148802,-117.2848675,0.00031738,2]
[392806094,1761976148837,112.44910835,0.000259,2]
[392806095,1761976156395,-173.97835076,0.000259,2]
[392806096,1761976156434,-13.57254089,0.000259,2]
[392806097,1761976162859,-153.85688159,0.000259,2]
[392806098,1761976163093,-146.14311841,0.000259,2]
[392806099,1761976163114,-400.0,0.00031718,2]
[392806100,1761976163134,-24166.00259835,0.00031738,2]
[392806101,1761976173882,-842.76419425,0.00031738,2]
[392806102,1761976173913,-2993.2666907,0.00031815,2]
[392806103,1761976173943,-919.80816967,0.00031839,2]
[392806104,1761976173998,-488.33189076,0.00031839,2]
[392806105,1761976174092,-300.0,0.00032,2]
[392806106,1761976174124,-300.0,0.00032,2]
[392806107,1761976174154,-2121.20975093,0.00032287,2]
[392806108,1761976174184,-500.0,0.00032318,2]
[392806109,1761976174213,-1436.38074721,0.00032404,2]
[392806110,1761976174289,-684.82900372,0.00032404,2]
[392806111,1761976176682,-1000.0,0.00032407,2]
[392806112,1761976176796,-1000.0,0.00032407,2]
[392806113,1761976176833,-1000.0,0.00032407,2]
[392806114,1761976176879,-1000.0,0.00032407,2]
[392806115,1761976176912,-907.90713592,0.00032407,2]
[392806116,1761976176998,-184.19572816,0.00032407,2]
[392806117,1761976179855,-151.70798794,0.00031369,2]
[392806118,1761976179885,-440.86386311,0.00032426,2]
[392806119,1761976179917,-244.0,0.00032453,2]
[392806120,1761976179946,-1198.98825765,0.00032514,2]
[392806121,1761976179976,-2757.5168216,0.00032653,2]
[392806122,1761976180054,-413.8561394,0.00032653,2]
[392806123,1761976182409,5000.0,0.0002551,2]
[392806124,1761976183163,-300.0,0.000259,2]
[392806125,1761976185744,-349.06406931,0.00032224,2]
[392806126,1761976185776,-392.22036328,0.00032654,2]
[392806127,1761976185807,-2121.20975093,0.00032799,2]
[392806128,1761976185838,-1198.98825765,0.00032835,2]
[392806129,1761976185871,-596.61966933,0.0003286,2]
[392806130,1761976185969,-683.805779,0.00032936,2]
[392806131,1761976188749,-300.0,0.000259,2]
[392806132,1761976188788,-398.53143456,0.00032224,2]
[392806133,1761976188826,-1437.40397193,0.00032936,2]
[392806134,1761976188856,-392.22036326,0.0003296,2]
[392806135,1761976188890,-244.0,0.00032966,2]
[392806136,1761976188925,-160.0,0.00032975,2]
[392806137,1761976188963,-500.0,0.00032989,4]
[392806138,1761976188998,-500.0,0.00032989,4]
[392806139,1761976189033,-500.0,0.00032989,4]
[392806140,1761976189200,-1135.6984605,0.00032989,4]
[392806141,1761976191764,-300.0,0.000259,2]
[392806142,1761976191802,-150.0,0.00031672,2]
[392806143,1761976191837,-316.75018114,0.00032846,2]
[392806144,1761976191869,-361.63820681,0.00032846,2]
[392806145,1761976191901,-299.3015395,0.00032989,4]
[392806146,1761976202867,-300.0,0.000259,2]
[392806147,1761976202889,-167.90496846,0.000259,2]
[392806148,1761976204729,5000.0,0.0002551,2]
[392806149,1761976227113,2262.61966246,0.0002551,2]
[392806196,1761976232039,-300.0,0.000259,2]
[392806198,1761976232051,-151.0,0.00031719,2]
[392806200,1761976232061,-151.0,0.00031719,2]
[392806202,1761976232071,-151.0,0.00031719,2]
[392806204,1761976232081,-151.0,0.00031719,2]
[392806206,1761976232090,-151.0,0.00031719,2]
[392806207,1761976232100,-151.0,0.00031719,2]
[392806209,1761976232109,-151.0,0.00031719,2]
[392806211,1761976232119,-151.0,0.00031719,2]
[392806213,1761976232128,-151.0,0.00031719,2]
[392806215,1761976232138,-151.0,0.00031719,2]
[392806217,1761976232148,-151.0,0.00031719,2]
[392806219,1761976232157,-151.0,0.00031719,2]
[392806221,1761976232167,-151.0,0.00031719,2]
[392806223,1761976232176,-151.0,0.00031719,2]
[392806225,1761976232186,-151.0,0.00031719,2]
[392806227,1761976232196,-151.0,0.00031719,2]
[392806229,1761976232205,-151.0,0.00031719,2]
[392806231,1761976232214,-151.0,0.00031719,2]
[392806233,1761976232223,-151.0,0.00031719,2]
[392806235,1761976232232,-151.0,0.00031719,2]
[392806236,1761976232241,-300.0,0.000318,2]
[392806237,1761976232250,-300.0,0.00032,2]
[392806238,1761976232261,-300.0,0.00032,2]
[392806239,1761976232270,-400.0,0.00032989,3]
[392806240,1761976232280,-1600.0,0.00032989,3]
[392806241,1761976232289,-400.0,0.00032989,2]
[392806242,1761976232298,-1798.90625898,0.0003299,2]
[392806308,1761976237826,-300.0,0.00032,2]
[392806310,1761976237839,-2098.20444398,0.00032612,2]
[392806311,1761976237848,-8555.82951529,0.0003299,2]
[392806312,1761976237858,-522.5462325,0.00032999,4]
[392806313,1761976237868,-500.0,0.00032999,4]
[392806314,1761976237878,-165.97763662,0.00032999,4]
[392806315,1761976237887,-501.11849068,0.00032999,4]
[392806316,1761976237897,-1435.0,0.00032999,4]
[392806317,1761976237906,-1435.0,0.00032999,4]
[392806318,1761976237916,-244.0,0.00033128,7]
[392806319,1761976237925,-469.71327334,0.00033162,7]
[392806322,1761976240370,-3e-08,0.00032992,2]
[392806332,1761976242689,300.0,0.000255,2]
[392806338,1761976242966,-300.0,0.000259,2]
[392806339,1761976242975,-2098.20444395,0.00032992,2]
[392806340,1761976242984,-799.84672666,0.00033162,7]
[392806341,1761976242994,-1435.0,0.00033196,4]
[392806342,1761976243003,-244.0,0.00033218,2]
[392806343,1761976243011,-994.0,0.00033222,2]
[392806344,1761976243021,-151.0,0.00033222,2]
[392806345,1761976243030,-200.56224685,0.00033222,2]
[392806346,1761976243040,-653.0,0.00033222,2]
[392806347,1761976243049,-151.0,0.00033222,2]
[392806348,1761976243058,-151.0,0.00033222,2]
[392806349,1761976243067,-151.15772213,0.00033222,2]
[392806350,1761976243076,-151.0,0.00033222,2]
[392806351,1761976243085,-151.0,0.00033222,2]
[392806352,1761976243094,-110.32886045,0.00033222,2]
[392806353,1761976243104,-40.67113955,0.00033222,2]
[392806354,1761976243113,-151.0,0.00033222,2]
[392806355,1761976243122,-1374.0,0.00033262,7]
[392806356,1761976243131,-5364.89493229,0.00033276,2]
[392806357,1761976243140,-994.0,0.00033277,2]
[392806358,1761976243149,-200.28381656,0.00033277,2]
[392806359,1761976243159,-653.0,0.00033277,2]
[392806360,1761976243168,-151.0,0.00033277,2]
[392806361,1761976243177,-151.0,0.00033277,2]
[392806362,1761976243185,-168.88304534,0.00033277,2]
[392806363,1761976243195,-202.55468762,0.00033277,2]
[392806364,1761976243204,-206.16642863,0.00033277,2]
[392806365,1761976243212,-500.0,0.000333,5]
[392806366,1761976243222,-399.65875064,0.000333,5]
[392806367,1761976243231,-360.88719937,0.00033332,2]
[392806368,1761976243250,-633.11280063,0.00033332,2]
[392806370,1761976243260,-653.0,0.00033332,2]
[392806372,1761976243269,-201.53171904,0.00033332,2]
[392806374,1761976243278,-187.95482955,0.00033342,3]
[392806375,1761976243287,-3936.66,0.00033343,10]
[392806377,1761976243296,-2138.06135834,0.00033345,10]
[392806382,1761976246164,-1142.48864166,0.00033345,10]
[392806383,1761976246173,-1050.69933028,0.00033351,4]
[392806384,1761976246250,-384.30066972,0.00033351,4]
[392806385,1761976246259,-28.48022261,0.00033351,4]
[392806386,1761976253436,300.0,0.000255,2]
[392806387,1761976287931,300.0,0.000255,2]
[392806388,1761976298676,300.0,0.000255,2]
[392806389,1761976309512,300.0,0.000255,2]
[392806390,1761976335619,1181.0,0.00035297,120]
[392806391,1761976346183,213.08227602,0.000255,2]
[392806392,1761976372901,-150.0,0.0002589,2]
[392806393,1761976373365,258.0,0.0003389,120]